[Event "*** Titled Tuesday Blitz"]
[Site "Chess.com"]
[Date "2021.04.27"]
[Round "6"]
[White "annacramling"]
[Black "ChessteacherPalmS"]
[Result "0-1"]
[WhiteElo "2070"]
[BlackElo "2385"]
[TimeControl "180+1"]
[EndTime "11:06:26 PDT"]
[Termination "ChessteacherPalmS won on time"]

1. d4 {[%clk 0:03:00.9]} 1... Nf6 {[%clk 0:02:57.9]} 2. c4 {[%clk 0:03:00.3]}
2... g6 {[%clk 0:02:57.3]} 3. Nc3 {[%clk 0:02:59.8]} 3... Bg7 {[%clk 0:02:57.4]}
4. e4 {[%clk 0:02:59.1]} 4... O-O {[%clk 0:02:56.5]} 5. h3 {[%clk 0:02:58.6]}
5... d6 {[%clk 0:02:56.1]} 6. Bg5 {[%clk 0:02:57.6]} 6... h6 {[%clk 0:02:54.2]}
7. Be3 {[%clk 0:02:57.1]} 7... e5 {[%clk 0:02:51.6]} 8. d5 {[%clk 0:02:56.9]}
8... a5 {[%clk 0:02:50.3]} 9. Nf3 {[%clk 0:02:53.9]} 9... Na6 {[%clk 0:02:47]}
10. Be2 {[%clk 0:02:53.8]} 10... Nc5 {[%clk 0:02:44.7]} 11. Qc2 {[%clk
0:02:54.3]} 11... Nh5 {[%clk 0:02:32.5]} 12. g3 {[%clk 0:02:51.5]} 12... Bd7
{[%clk 0:02:27.1]} 13. O-O-O {[%clk 0:02:49.1]} 13... a4 {[%clk 0:02:25.7]} 14.
Nd2 {[%clk 0:02:28.6]} 14... Nf6 {[%clk 0:02:21.4]} 15. f4 {[%clk 0:02:24.9]}
15... exf4 {[%clk 0:02:16.5]} 16. gxf4 {[%clk 0:02:25.8]} 16... Re8 {[%clk
0:02:15.8]} 17. e5 {[%clk 0:02:23.5]} 17... Bf5 {[%clk 0:02:03.7]} 18. Nde4
{[%clk 0:01:29.8]} 18... Nfxe4 {[%clk 0:01:59.2]} 19. Bxc5 {[%clk 0:01:28.2]}
19... Nxc5 {[%clk 0:01:46.8]} 20. Qd2 {[%clk 0:01:25.3]} 20... dxe5 {[%clk
0:01:46.7]} 21. Qe3 {[%clk 0:01:22.7]} 21... b6 {[%clk 0:01:39.1]} 22. Bg4
{[%clk 0:01:21.3]} 22... Bxg4 {[%clk 0:01:32.9]} 23. hxg4 {[%clk 0:01:15.6]}
23... exf4 {[%clk 0:01:33]} 24. Qxf4 {[%clk 0:01:15.5]} 24... Qg5 {[%clk
0:01:33]} 25. Qxg5 {[%clk 0:01:12.6]} 25... hxg5 {[%clk 0:01:33.2]} 26. Nb5
{[%clk 0:01:10.8]} 26... Re4 {[%clk 0:01:20.6]} 27. Nxc7 {[%clk 0:01:03.4]}
27... Rxc4+ {[%clk 0:01:17]} 28. Kb1 {[%clk 0:01:03.2]} 28... Rd8 {[%clk
0:01:03.2]} 29. d6 {[%clk 0:00:56]} 29... Be5 {[%clk 0:00:57.5]} 30. Nb5 {[%clk
0:00:51.6]} 30... Rb4 {[%clk 0:00:57.2]} 31. Rhe1 {[%clk 0:00:31.6]} 31... Bxb2
{[%clk 0:00:51.1]} 32. Kc2 {[%clk 0:00:09.8]} 32... Rxb5 {[%clk 0:00:49.2]} 33.
Rb1 {[%clk 0:00:05.1]} 33... Rxd6 {[%clk 0:00:43.2]} 34. Rxb2 {[%clk 0:00:04.4]}
34... Rd2+ {[%clk 0:00:40.9]} 35. Kxd2 {[%clk 0:00:02.5]} 35... Rxb2+ {[%clk
0:00:41.5]} 36. Kc3 {[%clk 0:00:02.5]} 36... Rxa2 {[%clk 0:00:41.5]} 37. Re8+
{[%clk 0:00:02.5]} 37... Kg7 {[%clk 0:00:40.8]} 38. Kb4 {[%clk 0:00:03.4]} 38...
Rg2 {[%clk 0:00:37.5]} 39. Rb8 {[%clk 0:00:02.5]} 39... Rxg4+ {[%clk 0:00:36.9]}
40. Ka3 {[%clk 0:00:02.8]} 40... Nd7 {[%clk 0:00:36.5]} 41. Rb7 {[%clk
0:00:02.7]} 41... Rd4 {[%clk 0:00:36.6]} 42. Kb2 {[%clk 0:00:02.4]} 42... g4
{[%clk 0:00:36.8]} 43. Kc3 {[%clk 0:00:02.3]} 43... Rd6 {[%clk 0:00:36.7]} 0-1

[Event "*** Titled Tuesday Blitz"]
[Site "Chess.com"]
[Date "2021.04.27"]
[Round "6"]
[White "MaevskiyNikolay"]
[Black "Nikolakis2014"]
[Result "0-1"]
[WhiteElo "2475"]
[BlackElo "2629"]
[TimeControl "180+1"]
[EndTime "11:06:28 PDT"]
[Termination "Nikolakis2014 won by checkmate"]

1. Nf3 {[%clk 0:03:00.9]} 1... Nf6 {[%clk 0:02:59.9]} 2. c4 {[%clk 0:03:00.6]}
2... e6 {[%clk 0:03:00.2]} 3. d4 {[%clk 0:02:58.7]} 3... c5 {[%clk 0:02:58.5]}
4. e3 {[%clk 0:02:56.6]} 4... a6 {[%clk 0:02:57.7]} 5. Nc3 {[%clk 0:02:56.4]}
5... d5 {[%clk 0:02:57.5]} 6. b3 {[%clk 0:02:55.4]} 6... cxd4 {[%clk 0:02:56.1]}
7. exd4 {[%clk 0:02:55.2]} 7... Bb4 {[%clk 0:02:55.3]} 8. Bd2 {[%clk 0:02:54.8]}
8... O-O {[%clk 0:02:55.5]} 9. Bd3 {[%clk 0:02:54.3]} 9... dxc4 {[%clk
0:02:54.4]} 10. bxc4 {[%clk 0:02:52.6]} 10... Nc6 {[%clk 0:02:54.6]} 11. Rb1
{[%clk 0:02:45]} 11... Nxd4 {[%clk 0:02:38.5]} 12. Rxb4 {[%clk 0:02:35.6]} 12...
Nc6 {[%clk 0:02:38]} 13. Ne4 {[%clk 0:02:21.8]} 13... Qxd3 {[%clk 0:02:28.9]}
14. Nxf6+ {[%clk 0:02:20.6]} 14... gxf6 {[%clk 0:02:28.1]} 15. Rb3 {[%clk
0:02:01.9]} 15... Qxc4 {[%clk 0:02:24.7]} 16. Rc3 {[%clk 0:02:01.9]} 16... Qe4+
{[%clk 0:02:07.5]} 17. Re3 {[%clk 0:02:00.9]} 17... Qc4 {[%clk 0:02:07.6]} 18.
Rc3 {[%clk 0:01:58.5]} 18... Qd5 {[%clk 0:02:07.8]} 19. O-O {[%clk 0:01:53]}
19... Rd8 {[%clk 0:02:06.8]} 20. Qc1 {[%clk 0:01:45.6]} 20... e5 {[%clk
0:02:00.3]} 21. Bh6 {[%clk 0:00:56]} 21... Bf5 {[%clk 0:01:58.1]} 22. Ng5 {[%clk
0:00:33.5]} 22... Bg6 {[%clk 0:01:57.8]} 23. Nh3 {[%clk 0:00:22.2]} 23... Nd4
{[%clk 0:01:53.9]} 24. Re1 {[%clk 0:00:21.6]} 24... Qe6 {[%clk 0:01:49.2]} 25.
Nf4 {[%clk 0:00:19.1]} 25... Qf5 {[%clk 0:01:46.9]} 26. Nxg6 {[%clk 0:00:17.6]}
26... hxg6 {[%clk 0:01:46.8]} 27. Be3 {[%clk 0:00:16.3]} 27... Kg7 {[%clk
0:01:42.9]} 28. Bh6+ {[%clk 0:00:14.2]} 28... Kg8 {[%clk 0:01:43.1]} 29. Be3
{[%clk 0:00:14.1]} 29... Rd6 {[%clk 0:01:39.5]} 30. Rc7 {[%clk 0:00:12.6]} 30...
Rad8 {[%clk 0:01:38]} 31. h3 {[%clk 0:00:12.2]} 31... b5 {[%clk 0:01:32.8]} 32.
Qb2 {[%clk 0:00:10.1]} 32... g5 {[%clk 0:01:26.2]} 33. Qb4 {[%clk 0:00:09.3]}
33... Nc2 {[%clk 0:01:20.8]} 34. Rxc2 {[%clk 0:00:08.2]} 34... Qxc2 {[%clk
0:01:21]} 35. Kh2 {[%clk 0:00:08.6]} 35... Qf5 {[%clk 0:01:18.9]} 36. Bc5 {[%clk
0:00:06.9]} 36... Rd5 {[%clk 0:01:17.9]} 37. Be3 {[%clk 0:00:06.9]} 37... Kg7
{[%clk 0:01:17.4]} 38. Qb2 {[%clk 0:00:06.8]} 38... Rd3 {[%clk 0:01:13.1]} 39.
Qb4 {[%clk 0:00:05.9]} 39... Qe6 {[%clk 0:01:12.4]} 40. Qe4 {[%clk 0:00:05.7]}
40... f5 {[%clk 0:01:09.8]} 41. Qb7 {[%clk 0:00:05.7]} 41... f4 {[%clk
0:01:09.8]} 42. Bb6 {[%clk 0:00:05.8]} 42... R8d7 {[%clk 0:01:08.1]} 43. Qb8
{[%clk 0:00:05.6]} 43... e4 {[%clk 0:01:02.3]} 44. f3 {[%clk 0:00:05.6]} 44...
e3 {[%clk 0:01:02.1]} 45. h4 {[%clk 0:00:05.5]} 45... g4 {[%clk 0:00:59.5]} 46.
h5 {[%clk 0:00:04.8]} 46... gxf3 {[%clk 0:00:58.4]} 47. gxf3 {[%clk 0:00:04.7]}
47... Rd2+ {[%clk 0:00:58]} 48. Kg1 {[%clk 0:00:04.4]} 48... Qh3 {[%clk
0:00:56.8]} 49. h6+ {[%clk 0:00:04.8]} 49... Kh7 {[%clk 0:00:57]} 50. Qf8 {[%clk
0:00:04.4]} 50... Qg2# {[%clk 0:00:56.3]} 0-1

[Event "*** Titled Tuesday Blitz"]
[Site "Chess.com"]
[Date "2021.04.27"]
[Round "6"]
[White "chessmadara"]
[Black "Mrlammy"]
[Result "0-1"]
[WhiteElo "2135"]
[BlackElo "2263"]
[TimeControl "180+1"]
[EndTime "11:06:29 PDT"]
[Termination "Mrlammy won on time"]

1. e4 {[%clk 0:03:00.9]} 1... e6 {[%clk 0:02:59.8]} 2. d4 {[%clk 0:02:59.2]}
2... d5 {[%clk 0:02:59.6]} 3. Nc3 {[%clk 0:02:59.3]} 3... Bb4 {[%clk 0:02:57.3]}
4. e5 {[%clk 0:02:58.6]} 4... c5 {[%clk 0:02:53.7]} 5. Bd2 {[%clk 0:02:58.3]}
5... cxd4 {[%clk 0:02:50.5]} 6. Na4 {[%clk 0:02:58]} 6... Bxd2+ {[%clk
0:02:46.6]} 7. Qxd2 {[%clk 0:02:56.2]} 7... Nc6 {[%clk 0:02:46.8]} 8. Nf3 {[%clk
0:02:51.8]} 8... Nge7 {[%clk 0:02:43.7]} 9. Bb5 {[%clk 0:02:48.5]} 9... Bd7
{[%clk 0:02:36.1]} 10. Nxd4 {[%clk 0:02:43.9]} 10... Nxe5 {[%clk 0:02:29.1]} 11.
Bxd7+ {[%clk 0:02:38.7]} 11... Nxd7 {[%clk 0:02:30]} 12. O-O {[%clk 0:02:33]}
12... O-O {[%clk 0:02:26.8]} 13. Rfe1 {[%clk 0:02:29.4]} 13... Nb6 {[%clk
0:02:23.9]} 14. Nc5 {[%clk 0:02:20.7]} 14... Qc8 {[%clk 0:02:18.2]} 15. b4
{[%clk 0:02:14.1]} 15... Nc6 {[%clk 0:02:14.1]} 16. Nb5 {[%clk 0:02:03.6]} 16...
Nc4 {[%clk 0:02:08.6]} 17. Qc3 {[%clk 0:02:01]} 17... Nxb4 {[%clk 0:01:29.8]}
18. Qxb4 {[%clk 0:01:59.3]} 18... a5 {[%clk 0:01:29.2]} 19. Qc3 {[%clk
0:01:41.2]} 19... Qxc5 {[%clk 0:01:26.4]} 20. Nd4 {[%clk 0:01:41.7]} 20... Rac8
{[%clk 0:01:11.3]} 21. Rab1 {[%clk 0:01:40]} 21... b6 {[%clk 0:01:08.3]} 22. Rb5
{[%clk 0:01:30.3]} 22... Qa3 {[%clk 0:01:05.3]} 23. Qxa3 {[%clk 0:01:26.8]}
23... Nxa3 {[%clk 0:01:06.2]} 24. Rxb6 {[%clk 0:01:27]} 24... Nxc2 {[%clk
0:01:05.5]} 25. Nxc2 {[%clk 0:01:13.5]} 25... Rxc2 {[%clk 0:01:06.4]} 26. Ra1
{[%clk 0:00:58.5]} 26... Rfc8 {[%clk 0:01:05.1]} 27. g3 {[%clk 0:00:54.5]} 27...
g6 {[%clk 0:01:03.8]} 28. Ra6 {[%clk 0:00:50.2]} 28... R8c5 {[%clk 0:01:01.4]}
29. Ra7 {[%clk 0:00:48.5]} 29... Rb2 {[%clk 0:00:59.6]} 30. a4 {[%clk 0:00:39]}
30... Rcc2 {[%clk 0:00:32.9]} 31. Rf1 {[%clk 0:00:36.9]} 31... Ra2 {[%clk
0:00:32.6]} 32. Rxa5 {[%clk 0:00:36.7]} 32... Rc4 {[%clk 0:00:32.6]} 33. Rb1
{[%clk 0:00:25.5]} 33... Rcxa4 {[%clk 0:00:31.3]} 34. Rb8+ {[%clk 0:00:23]}
34... Kg7 {[%clk 0:00:30.8]} 35. Rc5 {[%clk 0:00:23.5]} 35... Rc4 {[%clk
0:00:24.9]} 36. Rcb5 {[%clk 0:00:11.9]} 36... Rcc2 {[%clk 0:00:23.4]} 0-1

[Event "*** Titled Tuesday Blitz"]
[Site "Chess.com"]
[Date "2021.04.27"]
[Round "6"]
[White "catzapto"]
[Black "secretsuperstar7"]
[Result "0-1"]
[WhiteElo "2101"]
[BlackElo "2213"]
[TimeControl "180+1"]
[EndTime "11:06:31 PDT"]
[Termination "secretsuperstar7 won by resignation"]

1. e4 {[%clk 0:03:00.9]} 1... c5 {[%clk 0:02:59.4]} 2. Nf3 {[%clk 0:02:52]} 2...
d6 {[%clk 0:02:59]} 3. c3 {[%clk 0:02:50.2]} 3... Nf6 {[%clk 0:02:57.4]} 4. Be2
{[%clk 0:02:49.5]} 4... Bd7 {[%clk 0:02:56.4]} 5. Qc2 {[%clk 0:02:49.2]} 5... g6
{[%clk 0:02:56]} 6. O-O {[%clk 0:02:49.5]} 6... Bg7 {[%clk 0:02:56.3]} 7. Re1
{[%clk 0:02:50.1]} 7... O-O {[%clk 0:02:54.9]} 8. h3 {[%clk 0:02:48.7]} 8... Nc6
{[%clk 0:02:54.8]} 9. d4 {[%clk 0:02:39.2]} 9... cxd4 {[%clk 0:02:46.7]} 10.
cxd4 {[%clk 0:02:39.4]} 10... Nb4 {[%clk 0:02:46.1]} 11. Qb3 {[%clk 0:02:25.9]}
11... a5 {[%clk 0:02:37.1]} 12. Nc3 {[%clk 0:02:15.9]} 12... Rb8 {[%clk
0:02:18.2]} 13. a3 {[%clk 0:02:06]} 13... Nc6 {[%clk 0:02:17.1]} 14. Bf4 {[%clk
0:02:02.6]} 14... Nh5 {[%clk 0:01:37.4]} 15. Bh2 {[%clk 0:02:01.3]} 15... Nxd4
{[%clk 0:01:28.6]} 16. Nxd4 {[%clk 0:01:58.1]} 16... Bxd4 {[%clk 0:01:28]} 17.
Bxh5 {[%clk 0:01:58.4]} 17... gxh5 {[%clk 0:01:28.3]} 18. Nd5 {[%clk 0:01:50]}
18... Kh8 {[%clk 0:01:22]} 19. Rad1 {[%clk 0:01:47.6]} 19... Bg7 {[%clk
0:01:18.2]} 20. Qf3 {[%clk 0:01:27.4]} 20... f5 {[%clk 0:00:33.8]} 21. Qxh5
{[%clk 0:01:00.4]} 21... fxe4 {[%clk 0:00:31.5]} 22. Rxe4 {[%clk 0:00:55.2]}
22... Rf5 {[%clk 0:00:31.1]} 23. Qh4 {[%clk 0:00:15.1]} 23... e5 {[%clk
0:00:24.4]} 24. Qxd8+ {[%clk 0:00:10.5]} 24... Rxd8 {[%clk 0:00:25.3]} 25. Ne7
{[%clk 0:00:10.1]} 25... Rf7 {[%clk 0:00:24]} 26. Nd5 {[%clk 0:00:09.6]} 26...
Bc6 {[%clk 0:00:19.5]} 27. Rh4 {[%clk 0:00:09.8]} 27... Rdf8 {[%clk 0:00:17.5]}
28. f3 {[%clk 0:00:09]} 28... Rf5 {[%clk 0:00:13.8]} 29. Nc3 {[%clk 0:00:08.8]}
29... R5f6 {[%clk 0:00:13.1]} 30. Ne4 {[%clk 0:00:08.4]} 30... Bxe4 {[%clk
0:00:13.1]} 31. fxe4 {[%clk 0:00:09.3]} 31... Rc8 {[%clk 0:00:08.9]} 32. Rd2
{[%clk 0:00:07.6]} 32... Rc1+ {[%clk 0:00:08.6]} 0-1

[Event "*** Titled Tuesday Blitz"]
[Site "Chess.com"]
[Date "2021.04.27"]
[Round "6"]
[White "ukchessbomber"]
[Black "gurelediz"]
[Result "1-0"]
[WhiteElo "2523"]
[BlackElo "2665"]
[TimeControl "180+1"]
[EndTime "11:06:32 PDT"]
[Termination "ukchessbomber won on time"]

1. d4 {[%clk 0:03:00.9]} 1... Nf6 {[%clk 0:02:59.4]} 2. c4 {[%clk 0:03:01.3]}
2... e6 {[%clk 0:02:59.9]} 3. Nc3 {[%clk 0:03:01.9]} 3... Bb4 {[%clk 0:03:00.4]}
4. a3 {[%clk 0:03:02.5]} 4... Bxc3+ {[%clk 0:03:00.3]} 5. bxc3 {[%clk
0:03:03.4]} 5... O-O {[%clk 0:03:00.8]} 6. f3 {[%clk 0:03:03.7]} 6... d5 {[%clk
0:02:51.3]} 7. cxd5 {[%clk 0:03:04.6]} 7... exd5 {[%clk 0:02:47.9]} 8. e3 {[%clk
0:03:05]} 8... c5 {[%clk 0:02:48.6]} 9. Bd3 {[%clk 0:03:05.5]} 9... Nc6 {[%clk
0:02:47.8]} 10. Ne2 {[%clk 0:03:05.9]} 10... Re8 {[%clk 0:02:48.4]} 11. O-O
{[%clk 0:03:06.3]} 11... b6 {[%clk 0:02:49]} 12. Ng3 {[%clk 0:03:05.9]} 12...
Bd7 {[%clk 0:02:47.9]} 13. Bb2 {[%clk 0:03:04.1]} 13... Qc7 {[%clk 0:02:48.1]}
14. e4 {[%clk 0:03:03.5]} 14... dxe4 {[%clk 0:02:28.8]} 15. fxe4 {[%clk
0:03:04.4]} 15... Bg4 {[%clk 0:02:28.1]} 16. Qc1 {[%clk 0:02:37.6]} 16... Rad8
{[%clk 0:02:25.5]} 17. e5 {[%clk 0:02:08.9]} 17... Nd5 {[%clk 0:01:56.5]} 18.
Qg5 {[%clk 0:02:01.6]} 18... Be6 {[%clk 0:01:34.6]} 19. Nh5 {[%clk 0:01:59.9]}
19... g6 {[%clk 0:01:16.4]} 20. Qh6 {[%clk 0:01:58]} 20... f5 {[%clk 0:01:16.5]}
21. exf6 {[%clk 0:01:42.6]} 21... Qf7 {[%clk 0:01:11.8]} 22. Qg7+ {[%clk
0:01:22.3]} 22... Qxg7 {[%clk 0:01:11]} 23. Nxg7 {[%clk 0:01:23.2]} 23... cxd4
{[%clk 0:01:09.9]} 24. Nxe8 {[%clk 0:01:22.7]} 24... dxc3 {[%clk 0:01:07.1]} 25.
f7+ {[%clk 0:01:01.7]} 25... Bxf7 {[%clk 0:01:01]} 26. Nf6+ {[%clk 0:01:01.9]}
26... Nxf6 {[%clk 0:01:00.3]} 27. Bxc3 {[%clk 0:01:02.4]} 27... Nd5 {[%clk
0:00:47]} 28. Bb2 {[%clk 0:00:47]} 28... Ne3 {[%clk 0:00:45.9]} 29. Rfc1 {[%clk
0:00:47.4]} 29... Bd5 {[%clk 0:00:23.1]} 30. Bb5 {[%clk 0:00:43]} 30... Na5
{[%clk 0:00:14.5]} 31. Rc7 {[%clk 0:00:41.3]} 31... Bxg2 {[%clk 0:00:08.9]} 32.
Rg7+ {[%clk 0:00:38.6]} 32... Kf8 {[%clk 0:00:09.3]} 33. Rxh7 {[%clk 0:00:39]}
33... Rd2 {[%clk 0:00:07.4]} 34. Bc1 {[%clk 0:00:22]} 34... Rd1+ {[%clk
0:00:06.4]} 35. Kf2 {[%clk 0:00:22.5]} 35... Nc2 {[%clk 0:00:03.3]} 36. Bh6+
{[%clk 0:00:22.4]} 36... Kg8 {[%clk 0:00:03.1]} 37. Rg7+ {[%clk 0:00:22.9]}
37... Kh8 {[%clk 0:00:03.1]} 38. Rxd1 {[%clk 0:00:23.8]} 38... Nc6 {[%clk
0:00:01.9]} 39. Bxc6 {[%clk 0:00:23.6]} 1-0

[Event "*** Titled Tuesday Blitz"]
[Site "Chess.com"]
[Date "2021.04.27"]
[Round "6"]
[White "dosto07"]
[Black "mary-sanna"]
[Result "1-0"]
[WhiteElo "2301"]
[BlackElo "2128"]
[TimeControl "180+1"]
[EndTime "11:06:35 PDT"]
[Termination "dosto07 won by checkmate"]

1. e4 {[%clk 0:03:00.9]} 1... c5 {[%clk 0:03:00.5]} 2. Nf3 {[%clk 0:03:00.8]}
2... Nc6 {[%clk 0:03:01.1]} 3. Bb5 {[%clk 0:03:00.2]} 3... g6 {[%clk 0:03:00.4]}
4. Bxc6 {[%clk 0:02:58.3]} 4... dxc6 {[%clk 0:03:01.3]} 5. d3 {[%clk 0:02:54.9]}
5... Bg7 {[%clk 0:03:01.6]} 6. h3 {[%clk 0:02:54.8]} 6... Qc7 {[%clk 0:02:47.9]}
7. Nc3 {[%clk 0:02:54.2]} 7... e5 {[%clk 0:02:47.9]} 8. Be3 {[%clk 0:02:54.3]}
8... b6 {[%clk 0:02:47.6]} 9. Qd2 {[%clk 0:02:54.5]} 9... Nf6 {[%clk 0:02:43.8]}
10. O-O {[%clk 0:02:53.5]} 10... O-O {[%clk 0:02:43.6]} 11. Bh6 {[%clk
0:02:51.7]} 11... Rd8 {[%clk 0:02:40.6]} 12. Bxg7 {[%clk 0:02:50.4]} 12... Kxg7
{[%clk 0:02:41.5]} 13. Qg5 {[%clk 0:02:43.2]} 13... h6 {[%clk 0:02:39.3]} 14.
Qxe5 {[%clk 0:02:41.5]} 14... Qd7 {[%clk 0:02:17.2]} 15. Ne2 {[%clk 0:02:27.8]}
15... Ba6 {[%clk 0:02:16.1]} 16. Ng3 {[%clk 0:02:13.9]} 16... Re8 {[%clk
0:02:13.9]} 17. Qc3 {[%clk 0:02:13.4]} 17... Re6 {[%clk 0:02:00]} 18. Rad1
{[%clk 0:01:42.9]} 18... Kh7 {[%clk 0:01:55.4]} 19. Rfe1 {[%clk 0:01:38]} 19...
Rae8 {[%clk 0:01:50]} 20. b3 {[%clk 0:01:32.3]} 20... Qe7 {[%clk 0:01:44.9]} 21.
Nh2 {[%clk 0:01:23.8]} 21... Nd7 {[%clk 0:01:28.4]} 22. Nf3 {[%clk 0:01:07.7]}
22... Rd6 {[%clk 0:01:14.6]} 23. e5 {[%clk 0:00:56.8]} 23... Re6 {[%clk
0:01:12.1]} 24. Ne4 {[%clk 0:00:47.9]} 24... Nxe5 {[%clk 0:01:04.1]} 25. Nxe5
{[%clk 0:00:46.9]} 25... Rxe5 {[%clk 0:01:03.7]} 26. f4 {[%clk 0:00:44.3]} 26...
Re6 {[%clk 0:00:59.6]} 27. Nf6+ {[%clk 0:00:32.7]} 27... Qxf6 {[%clk 0:00:44.5]}
28. Qxf6 {[%clk 0:00:32.2]} 28... Rxe1+ {[%clk 0:00:38.2]} 29. Rxe1 {[%clk
0:00:31.2]} 29... Rxe1+ {[%clk 0:00:39.1]} 30. Kh2 {[%clk 0:00:29.5]} 30... Kg8
{[%clk 0:00:36.4]} 31. Qxc6 {[%clk 0:00:27.8]} 31... Re6 {[%clk 0:00:26.9]} 32.
Qc7 {[%clk 0:00:25.3]} 32... Kg7 {[%clk 0:00:22.1]} 33. Qxa7 {[%clk 0:00:24.7]}
33... Bc8 {[%clk 0:00:22.2]} 34. a4 {[%clk 0:00:20.8]} 34... Kf6 {[%clk
0:00:18]} 35. Qc7 {[%clk 0:00:20.5]} 35... Re8 {[%clk 0:00:15.7]} 36. Qxb6+
{[%clk 0:00:19.3]} 36... Be6 {[%clk 0:00:14]} 37. Qxc5 {[%clk 0:00:19.3]} 37...
Rc8 {[%clk 0:00:14.7]} 38. Qe5+ {[%clk 0:00:18.8]} 38... Ke7 {[%clk 0:00:14.9]}
39. c4 {[%clk 0:00:17.9]} 39... Rd8 {[%clk 0:00:14.5]} 40. d4 {[%clk 0:00:17.5]}
40... Rb8 {[%clk 0:00:14.5]} 41. Qxb8 {[%clk 0:00:15.1]} 41... Kf6 {[%clk
0:00:14]} 42. d5 {[%clk 0:00:15.2]} 42... Kf5 {[%clk 0:00:14.9]} 43. Qe5# {[%clk
0:00:14.8]} 1-0

[Event "*** Titled Tuesday Blitz"]
[Site "Chess.com"]
[Date "2021.04.27"]
[Round "6"]
[White "Forantes"]
[Black "olksuna"]
[Result "1-0"]
[WhiteElo "2508"]
[BlackElo "2640"]
[TimeControl "180+1"]
[EndTime "11:06:36 PDT"]
[Termination "Forantes won by checkmate"]

1. Nf3 {[%clk 0:03:00.6]} 1... Nf6 {[%clk 0:02:58.9]} 2. g3 {[%clk 0:03:00.5]}
2... b6 {[%clk 0:02:59.4]} 3. Bg2 {[%clk 0:03:00.7]} 3... Bb7 {[%clk 0:02:59.9]}
4. O-O {[%clk 0:03:01.1]} 4... c5 {[%clk 0:02:59.5]} 5. d4 {[%clk 0:03:00.1]}
5... cxd4 {[%clk 0:02:58]} 6. Qxd4 {[%clk 0:03:01]} 6... e6 {[%clk 0:02:54.2]}
7. c4 {[%clk 0:03:00.3]} 7... Be7 {[%clk 0:02:52.6]} 8. Nc3 {[%clk 0:03:00.3]}
8... d6 {[%clk 0:02:53]} 9. Rd1 {[%clk 0:02:58.6]} 9... a6 {[%clk 0:02:52.7]}
10. b3 {[%clk 0:02:58.7]} 10... Nbd7 {[%clk 0:02:48.8]} 11. Ba3 {[%clk
0:02:53.2]} 11... Nc5 {[%clk 0:02:48.4]} 12. b4 {[%clk 0:02:14.8]} 12... Nce4
{[%clk 0:02:40.3]} 13. Nxe4 {[%clk 0:02:13.3]} 13... Nxe4 {[%clk 0:02:40.4]} 14.
Rac1 {[%clk 0:01:50.7]} 14... Bf6 {[%clk 0:02:11]} 15. Qd3 {[%clk 0:01:42.2]}
15... Qb8 {[%clk 0:01:44.5]} 16. Nd2 {[%clk 0:01:26.9]} 16... Nxd2 {[%clk
0:01:37.3]} 17. Bxb7 {[%clk 0:01:22.5]} 17... Qxb7 {[%clk 0:01:34.4]} 18. Rxd2
{[%clk 0:01:21.5]} 18... Be7 {[%clk 0:01:30.3]} 19. c5 {[%clk 0:00:53.1]} 19...
dxc5 {[%clk 0:01:15.2]} 20. bxc5 {[%clk 0:00:52.4]} 20... bxc5 {[%clk
0:01:09.2]} 21. Bxc5 {[%clk 0:00:27.3]} 21... Rd8 {[%clk 0:01:02.6]} 22. Qe3
{[%clk 0:00:05]} 22... O-O {[%clk 0:00:51.6]} 23. Rxd8 {[%clk 0:00:04.8]} 23...
Rxd8 {[%clk 0:00:51]} 24. Bxe7 {[%clk 0:00:05.3]} 24... Qxe7 {[%clk 0:00:51.5]}
25. Qb6 {[%clk 0:00:06]} 25... h5 {[%clk 0:00:41.2]} 26. Qxa6 {[%clk 0:00:05.7]}
26... h4 {[%clk 0:00:41.8]} 27. Qc4 {[%clk 0:00:04.7]} 27... h3 {[%clk
0:00:30.4]} 28. Qg4 {[%clk 0:00:04.7]} 28... Qa3 {[%clk 0:00:26.9]} 29. Re1
{[%clk 0:00:03.6]} 29... Qxa2 {[%clk 0:00:17.2]} 30. Qxh3 {[%clk 0:00:03.6]}
30... Qd2 {[%clk 0:00:17.3]} 31. Qf1 {[%clk 0:00:03.7]} 31... g6 {[%clk
0:00:16.1]} 32. e3 {[%clk 0:00:04.3]} 32... Kg7 {[%clk 0:00:16.2]} 33. Qe2
{[%clk 0:00:04.8]} 33... Qd5 {[%clk 0:00:15.7]} 34. h4 {[%clk 0:00:04.8]} 34...
Ra8 {[%clk 0:00:14.9]} 35. Qb2+ {[%clk 0:00:05]} 35... Kg8 {[%clk 0:00:14.5]}
36. Rc1 {[%clk 0:00:05.6]} 36... Ra2 {[%clk 0:00:14.4]} 37. Rc8+ {[%clk
0:00:05.4]} 37... Kh7 {[%clk 0:00:12.6]} 38. Qh8# {[%clk 0:00:06]} 1-0

[Event "*** Titled Tuesday Blitz"]
[Site "Chess.com"]
[Date "2021.04.27"]
[Round "6"]
[White "csati17"]
[Black "Orest_Vovk"]
[Result "0-1"]
[WhiteElo "2550"]
[BlackElo "2365"]
[TimeControl "180+1"]
[EndTime "11:06:36 PDT"]
[Termination "Orest_Vovk won on time"]

1. c4 {[%clk 0:03:00.9]} 1... g5 {[%clk 0:02:59.4]} 2. d4 {[%clk 0:02:58]} 2...
h6 {[%clk 0:02:58.5]} 3. e4 {[%clk 0:02:54.6]} 3... Bg7 {[%clk 0:02:58.6]} 4. h4
{[%clk 0:02:54.3]} 4... g4 {[%clk 0:02:57.6]} 5. h5 {[%clk 0:02:53]} 5... c5
{[%clk 0:02:57.4]} 6. Be3 {[%clk 0:02:35.6]} 6... cxd4 {[%clk 0:02:52.7]} 7.
Qxg4 {[%clk 0:02:30.1]} 7... dxe3 {[%clk 0:02:20.5]} 8. Qxg7 {[%clk 0:02:28.9]}
8... exf2+ {[%clk 0:02:20.2]} 9. Kd1 {[%clk 0:02:11.5]} 9... fxg1=Q {[%clk
0:02:06.8]} 10. Qxh8 {[%clk 0:02:06.9]} 10... Qxf1+ {[%clk 0:01:59]} 11. Rxf1
{[%clk 0:02:06.3]} 11... Kf8 {[%clk 0:01:59.2]} 12. Nc3 {[%clk 0:01:53.5]} 12...
d6 {[%clk 0:01:42.3]} 13. Kc2 {[%clk 0:01:27.1]} 13... Be6 {[%clk 0:01:32.1]}
14. Rf3 {[%clk 0:01:15.6]} 14... Nc6 {[%clk 0:01:06.8]} 15. Rg3 {[%clk
0:01:08.9]} 15... f6 {[%clk 0:00:58.1]} 16. Nd5 {[%clk 0:01:02.9]} 16... Qa5
{[%clk 0:00:39.8]} 17. a3 {[%clk 0:00:30.6]} 17... Qc5 {[%clk 0:00:29.5]} 18.
Ne3 {[%clk 0:00:17.4]} 18... Qxh5 {[%clk 0:00:20.8]} 19. Rf1 {[%clk 0:00:13.8]}
19... Qf7 {[%clk 0:00:15]} 20. b3 {[%clk 0:00:11.9]} 20... Ke8 {[%clk
0:00:14.9]} 21. Nf5 {[%clk 0:00:11.9]} 21... Kd7 {[%clk 0:00:11.1]} 22. Nxh6
{[%clk 0:00:11.6]} 22... Nxh6 {[%clk 0:00:11]} 23. Qxa8 {[%clk 0:00:11.1]} 23...
Kc7 {[%clk 0:00:11.1]} 24. Qh8 {[%clk 0:00:07.8]} 24... Bxc4 {[%clk 0:00:10]}
25. Rd1 {[%clk 0:00:05.7]} 25... Ng4 {[%clk 0:00:06.3]} 26. Kb2 {[%clk
0:00:04.6]} 26... Nf2 {[%clk 0:00:04.2]} 27. Rd2 {[%clk 0:00:03.4]} 27... Nxe4
{[%clk 0:00:04]} 28. Rc2 {[%clk 0:00:01.6]} 28... Nxg3 {[%clk 0:00:03.9]} 29.
Rxc4 {[%clk 0:00:01.7]} 29... Nf5 {[%clk 0:00:03.8]} 30. Qh3 {[%clk 0:00:01.1]}
30... Qe6 {[%clk 0:00:03.9]} 0-1